Cogmind - Beta 13 @@@ ROGUE MODE // 2024.05.07 @ 20:50:44 Player: orthostice Result: Destroyed by G-34 Mercenary with Small Laser Performance ------------- Evolutions (0) 0 Regions Visited (2) 400 Robots Destroyed (37) 185 Value Destroyed (665) 665 Prototype IDs (0) 0 Alien Tech Used (0) 0 Bonus (0) 0 TOTAL SCORE: 1250 Bonus ------- None Cogmind --------- Core Integrity 0/250 Matter 400/400 Energy 95/125 System Corruption 1% Temperature Cool (94) Movement Walking (120) Location -10/Mines Parts ------- > --- POWER (1) -------- Light Ion Engine > --- PROPULSION (2) --- Aluminum Leg Aluminum Leg > --- UTILITY (2) ------ Medium Storage Unit Medium Matter Pod > --- WEAPON (2) ------- Mining Laser > --- INVENTORY (10) --- Light Ion Engine Light Treads Aluminum Leg Small Storage Unit Structural Scanner Sensor Array Signal Interpreter Improved Terrain Scanner Seismic Detector Peak State ------------ > --- POWER ------------ Ion Engine > --- PROPULSION ------- Light Treads Light Treads > --- UTILITY ---------- Medium Storage Unit Medium Matter Pod > --- WEAPON ----------- Assault Rifle Light Assault Rifle > --- INVENTORY -------- Light Treads Aluminum Leg Aluminum Leg Small Storage Unit Medium Matter Pod Improved Terrain Scanner EM Pulse Gun Medium Laser [Rating: 8] Favorites ----------- Power Ion Engine Engine Ion Engine Propulsion Light Treads Treads Light Treads Leg Aluminum Leg Utility Medium Matter Pod Storage Medium Matter Pod Weapon Medium Laser Energy Gun Medium Laser Ballistic Gun Light Assault Rifle Ballistic Cannon Light Cannon Special Weapon Mining Laser Build | -11 -10 -10 ------- Run | Yrd Mat Min Slots Evolved . | . . . Power . | . . . Propulsion . | . . . Utility . | . . . Weapon . | . . . Parts Attached 21 | 6 9 6 Power 2 | 1 . 1 Engine 2 | 1 . 1 Core . | . . . Reactor . | . . . Propulsion 5 | 2 1 2 Treads 3 | 2 1 . Leg 2 | . . 2 Wheel . | . . . Hover . | . . . Flight . | . . . Utility 5 | 1 4 . Device . | . . . Storage 5 | 1 4 . Processor . | . . . Hackware . | . . . Protection . | . . . Artifact . | . . . Weapon 9 | 2 4 3 Energy Gun 5 | 2 2 1 Energy Cannon . | . . . Ballistic Gun 2 | . 2 . Ballistic Cannon 1 | . . 1 Launcher . | . . . Special Weapon 1 | . . 1 Impact Weapon . | . . . Slashing Weapon . | . . . Piercing Weapon . | . . . Special Melee Weapon . | . . . Unidentified Prototypes . | . . . Parts Lost 10 | . 4 6 Power 1 | . . 1 Propulsion 2 | . 1 1 Utility . | . . . Weapon 7 | . 3 4 Highest Loss Streak 3 | . 2 3 To Critical Strikes . | . . . Average Slot Usage (%) 96 | . 96 97 Engine 14 | . 14 14 Treads 21 | . 28 9 Leg 6 | . . 18 Storage 26 | . 25 28 Energy Gun 16 | . 16 16 Ballistic Gun 7 | . 10 . Ballistic Cannon 2 | . . 8 Naked Turns . | . . . Heaviest Build 22 | 14 21 22 Greatest Support 40 | 40 40 40 Greatest Overweight (x) 2 | 2 . 2 Average Overweight (x) . | . . . Largest Inventory Capacity 10 | 8 10 10 Average Capacity 9 | 7 9 10 Most Carried 10 | 4 10 10 Average Carried 7 | 2 7 8 Final Capacity 10 | 8 10 10 Final Carried 9 | 4 9 9 Class Distribution -------------------- 100% | Mutant Dominant Class ---------------- Mutant | -10/Materials Mutant | -10/Mines Resources | -11 -10 -10 ----------- Run | Yrd Mat Min Matter Collected 853 | 198 454 201 Remotely . | . . . Salvage Created 1170 | . 881 289 Parts 78 | . 66 12 Haulers Intercepted 2 | . 2 . Recyclers Shooed 5 | . 5 . Parts Field Recycled . | . . . Retrieved Matter . | . . . Parts Self-Destructed . | . . . Prevented . | . . . Kills | -11 -10 -10 ------- Run | Yrd Mat Min Combat Hostiles Destroyed 26 | . 14 12 Guns 21 | . 14 7 Cannons 5 | . . 5 Classes Destroyed 11 | . 10 1 Worker 2 | . 2 . Builder 1 | . 1 . Tunneler 2 | . 1 1 Hauler 2 | . 2 . Recycler 2 | . 2 . Mechanic 1 | . 1 . Operator 1 | . 1 . Watcher 3 | . 3 . Swarmer 11 | . 8 3 Grunt 12 | . 6 6 Assembled 3 | . . 3 Best Kill Streak 4 | . 4 3 Combat Bots Only 3 | . 3 3 Max Kills in Single Turn 2 | . 2 2 Gunslinging 1 | . . 1 Exploded . | . . . Melee . | . . . Uniques/NPCs Destroyed . | . . . Combat | -11 -10 -10 -------- Run | Yrd Mat Min Hostile Shots Fired 151 | . 95 56 Missed 36 | . 21 15 Damage Taken 1305 | . 805 500 Core 250 | . 174 76 Absorbed by Shields . | . . . Core Remaining (%) 100 | 100 . . Volleys Fired 159 | . 85 74 Largest 2 | . 2 2 Hottest 150 | . 90 150 Shots Fired 270 | . 159 111 Gun 228 | . 159 69 Cannon 36 | . . 36 Launcher . | . . . Special 6 | . . 6 Kinetic 135 | . 99 36 Thermal 105 | . 34 71 Explosive . | . . . Electromagnetic 30 | . 26 4 Robot Hit Streak 18 | . 18 6 Robot Miss Streak 5 | . 5 4 Penetration Max . | . . . Secondary Targets 1 | . . 1 Max Gunslinging Chain 1 | . . 1 Shots Hit Robots 146 | . 97 49 Core Hits 67 | 1 44 22 Critical Kills 1 | . 1 . Critical Parts Destroyed . | . . . Critical Strikes 10 | . 6 4 Burn 8 | . 4 4 Destroy 1 | . 1 . Corrupt 1 | . 1 . Melee Attacks . | . . . Impact . | . . . Slashing . | . . . Piercing . | . . . Sneak Attacks . | . . . Combat Hostiles . | . . . Follow-up Attacks . | . . . Damage Inflicted 1876 | 1 1188 687 Guns 1532 | . 1082 450 Cannons 137 | . . 137 Explosions 60 | . 60 . Melee . | . . . Ramming 51 | 1 46 4 Kinetic 796 | . 659 137 Thermal 853 | . 334 519 Explosive . | . . . Electromagnetic 176 | . 149 27 Impact . | . . . Slashing . | . . . Piercing . | . . . Highest Corruption 1 | 1 1 1 Average Corruption 1 | 1 1 1 Corruption Purged . | . . . Corruption Blocked . | . . . Effects 22 | . 17 5 Message Errors 7 | . 4 3 Matter Fused 5 | . 4 1 Heat Flow Errors 2 | . 2 . Energy Discharges 6 | . 5 1 Data Loss (minor) 2 | . 2 . Overload Shots . | . . . Overflow Damage . | . . . Projectiles . | . . . Explosions . | . . . Melee . | . . . Knockbacks 4 | . 1 3 Impact 3 | . 1 2 Kinetic 1 | . . 1 Secondary . | . . . Self-Inflicted Damage 65 | . 65 . Shots 2 | . 2 . Rammed 11 | 2 9 . Targets Rammed 15 | 2 9 4 Kicked 4 | . . 4 Crushed . | . . . Highest Temperature 216 | . 216 185 Average Temperature 56 | . 39 69 Received Heat Transfer 417 | . 240 177 Siege Activations . | . . . Robots Corrupted . | . . . Combat Hostiles . | . . . Parts Fried . | . . . Impact Corruptions . | . . . Robots Melted . | . . . Combat Hostiles . | . . . Parts Melted 9 | . 4 5 Heat Transferred 2964 | . 1210 1754 Parts Sabotaged . | . . . Parts Stolen . | . . . Parts Stripped . | . . . Power Chain Reactions 2 | . 2 . Alert | -11 -10 -10 ------- Run | Yrd Mat Min Peak Influence 157 | . 157 126 Initial 26 | . . 26 Average 68 | . 74 64 Maximum Alert Level . | . . . Low Security (%) 100 | 100 100 100 Level 1 . | . . . Level 2 . | . . . Level 3 . | . . . Level 4 . | . . . Level 5 . | . . . High Security . | . . . Max Security . | . . . Squads Dispatched 4 | . 4 . Investigation 3 | . 3 . Extermination . | . . . Reinforcement 1 | . 1 . Assault . | . . . Garrison . | . . . Intercept . | . . . Searches Triggered . | . . . Construction Impeded . | . . . Haulers Reinforced . | . . . Active Scanning Responses . | . . . Cargo Convoy Interrupts . | . . . Stealth | -11 -10 -10 --------- Run | Yrd Mat Min Distress Signals 2 | . 2 . Communications Jammed . | . . . Distress Signals . | . . . Times Spotted 35 | . 22 13 Peak Tracking Total 4 | . 4 3 Tactical Retreats 1 | . . 1 Traps | -11 -10 -10 ------- Run | Yrd Mat Min Traps Triggered 2 | . 2 . Indirectly . | . . . Trap Hack Attempts . | . . . Triggered . | . . . Disarmed . | . . . Reprogrammed . | . . . Reused . | . . . Traps Extracted . | . . . Installed . | . . . Triggered . | . . . Machines | -11 -10 -10 ---------- Run | Yrd Mat Min Machines Disabled 2 | . 2 . Max in Single Turn 1 | . 1 . Machines Repaired . | . . . Machines Dismantled . | . . . Machines Sabotaged . | . . . Overloaded Fab Kills . | . . . Hacking | -11 -10 -10 --------- Run | Yrd Mat Min Machines Accessed 7 | . 7 . Terminals 4 | . 4 . Fabricators . | . . . Repair Stations 1 | . 1 . Recycling Units 2 | . 2 . Scanalyzers . | . . . Garrison Access . | . . . Total Hacks 12 | . 12 . Successful 3 | . 3 . Failed 9 | . 9 . Catastrophic 3 | . 3 . Database Lockouts . | . . . Manual 11 | . 11 . Terminals 9 | . 9 . Fabricators . | . . . Repair Stations 1 | . 1 . Recycling Units 2 | . 2 . Scanalyzers . | . . . Garrison Access . | . . . Terminal Hacks . | . . . Fabricator Hacks . | . . . Repair Station Hacks . | . . . Recycling Unit Hacks . | . . . Scanalyzer . | . . . Garrison Access Hacks . | . . . Unauthorized Hacks 3 | . 3 . Terminals . | . . . Fabricators . | . . . Repair Stations 1 | . 1 . Mechanics 1 | . 1 . Recycling Units 2 | . 2 . Recyclers 1 | . 1 . Mask 1 | . 1 . Scanalyzers . | . . . Garrison Access . | . . . Data Cores Recovered . | . . . Used . | . . . Hacking Detections 4 | . 4 . Full Trace Events 2 | . 2 . Feedback Events . | . . . Feedback Blocked . | . . . Robot Schematics Acquired . | . . . Robots Built . | . . . Authchips . | . . . Time . | . . . Total Robot Build Rating . | . . . Part Schematics Acquired . | . . . Parts Built . | . . . Authchips . | . . . Time . | . . . Total Part Build Rating . | . . . Parts Repaired . | . . . Time . | . . . Parts Recycled . | . . . Recycled Matter . | . . . Retrieved Matter . | . . . Retrieved Components . | . . . Parts Scanalyzed . | . . . Part Schematics Acquired . | . . . Parts Damaged . | . . . Bothacking | -11 -10 -10 ------------ Run | Yrd Mat Min Used RIF Installer . | . . . Robots Hacked . | . . . Non-combat . | . . . Combat . | . . . Robot Hacks Applied . | . . . Relay Couplers Released . | . . . Fabnet Peak Effective % . | . . . Robots Rewired . | . . . Allies Hacked . | . . . Hacks Repelled . | . . . Allies | -11 -10 -10 -------- Run | Yrd Mat Min Total Allies . | . . . Largest Group . | . . . Highest-Rated Group . | . . . Highest-Rated Ally . | . . . Total Orders . | . . . Ally Attacks . | . . . Total Damage . | . . . Kills . | . . . Allies Corrupted . | . . . Allies Melted . | . . . Intel | -11 -10 -10 ------- Run | Yrd Mat Min Robot Analysis Total . | . . . Derelict Logs Recovered . | . . . Drone Launches . | . . . Drone Recoveries . | . . . Exploration | -11 -10 -10 ------------- Run | Yrd Mat Min Turns Passed 2304 | 95 1478 731 Spaces Moved 1041 | 49 730 262 Core 10 | 10 . . Treads 822 | 39 730 53 Legs 209 | . . 209 Wheels . | . . . Hover . | . . . Flight . | . . . Fastest Speed 50 | 50 160 120 Average Speed 165 | 146 160 185 Slowest Speed 260 | 160 160 260 Overloaded Moves . | . . . Propulsion Burnouts . | . . . Robots Hopped . | . . . Cave-ins Triggered . | . . . Exploration Rate (%) 50 | 4 93 54 Regions Visited 2 Branch Regions 1 Pre-discovered Areas . | . . . Known Exits Taken . | . . . Unknown Exits Taken 2 | 1 1 . Scrap Searched 2 | . . 2 Spaces Dug . | . . . Terrain Destroyed 6 | . 5 1 Melee . | . . . Projectile 1 | . . 1 AOE 5 | . 5 . Terrain Rammed . | . . . Walls Destroyed . | . . . Machines Disabled . | . . . Actions | -11 -10 -10 --------- Run | Yrd Mat Min Total 1338 | 68 889 381 Wait 75 | 8 38 29 Move 1039 | 48 729 262 Hop . | . . . Pick Up 24 | 4 15 5 Fast Attach 8 | 6 1 1 Attach 9 | . 5 4 Detach . | . . . Swap 4 | . 3 1 Drop 5 | . 4 1 Fire 159 | . 85 74 Melee . | . . . Ram 2 | 2 . . Kick 4 | . . 4 Crush 9 | . 9 . Escape Stasis . | . . . Rewire . | . . . Trap . | . . . Miscellaneous . | . . . Route ------- -11/Scrapyard -10/Materials (discovered 4 exits: [*Mat x2] / [*Min x2]) -10/Mines History --------- Turn | Location | Event 9 | -11/Scrapyard | Discovered new exit (range 16) 96 | -11/Scrapyard | Entered Materials 306 | -10/Materials | Build established: Mutant 331 | -10/Materials | Discovered new exit (range 11) 758 | -10/Materials | Discovered new exit (range 15) 765 | -10/Materials | Core integrity fell below 50% 1226 | -10/Materials | Discovered new exit (range 13) 1356 | -10/Materials | Discovered new exit (range 14) 1574 | -10/Materials | Entered Mines 1712 | -10/Mines | Lost 3 parts (1n2w) 1903 | -10/Mines | Excavation squad dispatched 1903 | -10/Mines | A large section of the Mines collapsed 2028 | -10/Mines | Core integrity fell below 20% 2153 | -10/Mines | Excavation squad dispatched 2305 | -10/Mines | Destroyed by G-34 Mercenary with Small Laser Last Messages --------------- Dispatching additional escorted excavation squad. K-01 Serf collects debris. G-34 Mercenary overheating. Aluminum Leg melted. Heat Sink melted. Aluminum Leg melted. Ion Engine melted. G-34 Mercenary destroyed. K-01 Serf collects debris. R-06 Scavenger collects Sml. Laser. Acquired Mining Laser. as-98830 destroyed. Acquired Aluminum Leg. Acquired 10 matter. G-34 Mercenary suffers critical hit (Burn). G-34 Mercenary destroyed. 7X%/4FOG3:|3:YCT,/P G-34 Mercenary suffers critical hit (Burn). Med. Laser destroyed. Map ----- +----------------------------------------------------+ | ??# #??# #??# ##????????### ##### #??? | | ### #??# #######??## ##???????????####??## #??? | | #### #?????????####?????????????????## #??? | | ### !%[#?????????????????????????????## #??? | | ?# ######????????????????????????????## #??? | | ?# ###????????????????????????????????## ##??? | | ?????????????????????# ??????????### ##??? | | ###???????????????????### ??????#### ##?? | | ??????????????????????? +????### #?? | | ????????????????????????# ???## #?? | | ????????????????????????# #### #### ##?? | | ????????????????????????# ##???###??? | | ???????????????????????## ##?????????? | | ???????????????????????# ##??????????? | | ???????????????????????# ##??????????? | | ???????????????????????## ##?????????? | | ???????????????????????## #?????????? | | ???????????????????????# #?????????? | | ???????????????????????# ### ##?????????? | | ???????????????????????## ##?# ###??????????? | | ????????????????????????### ##??# #????????????? | | ??????????????????????????## #???# #????????????? | | ???????????????????????????# ##??# #????????????? | | ??????????????????????????##% #??# #????????????? | | ????????????#??????????#### #??# #????????????? | | ???????????############# @g ##??# #????????????? | | ???????????# # % = t! ###???# #????????????? | | ???????????## % ! ;#?????# #????????????? | | ??????????# ;% ##### ####?????# #????????????? | | ?????????# # #???# ##?????#### #????????????? | | ??????? =% #???####??????# #????????###?? | | ????? ##?????????????# ###???????# ##? | | ????####### ???????????????# ##???????# #? | | ??????????## ???????????????# ##????## #? | | ???????????### ??????????????## ##### #?? | | ?????????????# ?????????????## #?? | | ?????????????# ????????????## #??? | | ?????????????# ????????????# ##??? | | ?????????????# ????????????## ##???? | | ?????????????# ????????????# ##????? | | ?????????????# ????????????# ##????? | | ?????????????? ????????????## ####?? | | ????????????????????????????## % #?? | | ?????????????????????????????#%## ## #? | | ?????????????????????????????# ## ### #? | | ?????????????????????????????# ## #?## ## ##? | | ?????????????????????????????# ## #??# ##?? #?? | | ???????????????????????????? ?? #???? #?? | | ?????????????????????????? #??## ????????? | | ???????????????????????? #########???? ???????? | +----------------------------------------------------+ Best States ------------- Heat Dissipation 25 Energy Generation 10 Energy Capacity 250 Matter Stores 400 Matter Capacity 400 Sight Range 16 Terrain Scan Density 10 Evasion (%) 55 Recoil Reduction 2 Item Schematics ----------------- None Robot Schematics ------------------ None Fabricated ------------ Nothing Alien Tech Used ----------------- None Achievements -------------- None Challenges ------------ None Game ------ Seed CentriumContainmentPurifier Manual? 0 Play Time 00:18:29 Cumulative 21.2 hours Start 2024.05.07 @ 20:34:32 End 2024.05.07 @ 20:50:44 Sessions 1 Manual Loads 0 Difficulty Rogue Special Mode None Game No. 36 Rogue 36 Adventurer 0 Explorer 0 Win Type - Total 0 Types 0/0/0/0/0/0/0/0/0 Lore% 24 Gallery% 26 Achievement% 23 Wizard Run 0 Options --------- Layout 1 ASCII 0 Keyboard 0 Movement Numpad Keybinds 0 Fullscreen 2 Font 32/SmallcapsGlow Map View 50x35 Zoom Use 0% Tactical HUD 0 Map Filters NONE Filters NONE Steam 1 RUN: 51ea1b15-f65a-4f40-8225-dec32f7db60b